[Event "FIDE Online Quarter final-2020"]
[Site "Online"]
[Date "2020.08.28"]
[Round "4.1"]
[White "Mammadzada, Gunay"]
[Black "Socko, Monika"]
[Result "1/2-1/2"]
[ECO "B19"]
[WhiteElo "2424"]
[BlackElo "2381"]
[Annotator "ChessBase"]
[PlyCount "80"]
[EventDate "2020.08.28"]
[EventType "k.o."]
[SourceTitle "playchess.com"]
[Source "ChessBase"]
[SourceQuality "1"]
[TimeControl "900+5"]

1. e4 {[%emt 0:00:03]} c6 {[%emt 0:00:02]} 2. d4 {[%emt 0:00:06]} d5 {[%emt 0:00:01]} 3. Nc3 {[%emt 0:00:02]} dxe4 {[%emt 0:00:02]} 4. Nxe4 {[%emt 0:00:02]} Bf5 {[%emt 0:00:00]} 5. Ng3 {[%emt 0:00:01]} Bg6 {[%emt 0:00:01]} 6. h4 {[%emt 0:00:02]} h6 {[%emt 0:00:02]} 7. Nf3 {[%emt 0:00:06]} Nd7 {[%emt 0:00:03]} 8. Bd3 {[%emt 0:00:05]} Bxd3 {[%emt 0:00:07]} 9. Qxd3 {[%emt 0:00:00]} Ngf6 {[%emt 0:00:08]} 10. Bf4 {[%emt 0:01:03]} e6 {[%emt 0:00:19]} 11. O-O-O {[%emt 0:00:11]} a5 {[%emt 0:00:05]} 12. Qe2 {[%emt 0:01:33]} a4 {[%emt 0:00:15]} 13. a3 {[%emt 0:01:07]} Be7 {[%emt 0:00:16]} 14. Ne5 {[%emt 0:00:33]} O-O {[%emt 0:00:26]} 15. Rh3 {[%emt 0:01:05]} Qa5 {[%emt 0:01:47]} 16. c4 {[%emt 0:01:28]} Rad8 {[%emt 0:00:27]} 17. Ne4 {[%emt 0:03:36]} Nxe4 {[%emt 0:02:47]} 18. Qxe4 {[%emt 0:00:00]} Bd6 {[%emt 0:00:26]} 19. Rhd3 {[%emt 0:01:13]} Bxe5 {[%emt 0:00:43]} 20. Bxe5 {[%emt 0:00:00]} Nxe5 {[%emt 0:00:19]} 21. Qxe5 {[%emt 0:00:04]} Qa6 {[%emt 0:01:14]} 22. Rg3 {[%emt 0:02:12]} Qxc4+ {[%emt 0:01:24]} 23. Kb1 {[%emt 0:00:02]} g6 {[%emt 0:00:26]} 24. h5 {[%emt 0:00:06]} Qd5 {[%emt 0:00:58]} 25. Qxd5 {[%emt 0:00:37]} Rxd5 {[%emt 0:01:02]} 26. hxg6 {[%emt 0:00:00]} Rfd8 {[%emt 0:00:07]} 27. Rh1 {[%emt 0:00:18]} h5 {[%emt 0:00:12]} 28. gxf7+ {[%emt 0:01:09]} Kxf7 {[%emt 0:00:04]} 29. Rh4 {[%emt 0:00:00]} Rf5 {[%emt 0:00:16]} 30. f3 {[%emt 0:00:18]} b5 {[%emt 0:00:31]} 31. Rgh3 {[%emt 0:00:10]} Kg6 {[%emt 0:00:25]} 32. Re4 {[%emt 0:00:03]} Rd6 {[%emt 0:00:15]} 33. Rg3+ {[%emt 0:00:04]} Rg5 {[%emt 0:00:04]} 34. Rxg5+ {[%emt 0:00:05]} Kxg5 {[%emt 0:00:01]} 35. Kc2 {[%emt 0:00:00]} Kf6 {[%emt 0:00:15]} 36. Kc3 {[%emt 0:00:01]} Rd5 {[%emt 0:00:04]} 37. Re2 {[%emt 0:00:22]} Kf5 {[%emt 0:00:12]} 38. Re4 {[%emt 0:00:06]} Kf6 {[%emt 0:00:07]} 39. Re1 {[%emt 0:00:07]} Kf5 {[%emt 0:00:06]} 40. Re4 {[%emt 0:00:02]} Kf6 {[%emt 0:00:01]} 1/2-1/2

[Event "FIDE Online Quarter final-2020"]
[Site "Online"]
[Date "2020.08.28"]
[Round "4.1"]
[White "Zhukova, Natalia"]
[Black "Zatonskih, Anna"]
[Result "1/2-1/2"]
[ECO "D57"]
[WhiteElo "2346"]
[BlackElo "2407"]
[Annotator "ChessBase"]
[PlyCount "54"]
[EventDate "2020.08.28"]
[EventType "k.o."]
[SourceTitle "playchess.com"]
[Source "ChessBase"]
[SourceQuality "1"]
[TimeControl "900+5"]

1. d4 {[%emt 0:00:01]} d5 {[%emt 0:00:04]} 2. Nf3 {[%emt 0:00:07]} Nf6 {[%emt 0:00:23]} 3. c4 {[%emt 0:00:02]} e6 {[%emt 0:00:01]} 4. Nc3 {[%emt 0:00:01]} Be7 {[%emt 0:00:03]} 5. Bg5 {[%emt 0:00:03]} h6 {[%emt 0:00:01]} 6. Bh4 {[%emt 0:00:02]} O-O {[%emt 0:00:10]} 7. e3 {[%emt 0:00:02]} Ne4 {[%emt 0:00:04]} 8. Bxe7 {[%emt 0:00:02]} Qxe7 {[%emt 0:00:01]} 9. cxd5 {[%emt 0:00:02]} Nxc3 {[%emt 0:00:16]} 10. bxc3 {[%emt 0:00:00]} exd5 {[%emt 0:00:02]} 11. Bd3 {[%emt 0:00:01]} Rd8 {[%emt 0:03:15]} 12. O-O {[%emt 0:00:06]} Nc6 {[%emt 0:01:51]} 13. Re1 {[%emt 0:00:38]} Bg4 {[%emt 0:01:40]} 14. e4 {[%emt 0:03:50]} dxe4 {[%emt 0:02:38]} 15. Bxe4 {[%emt 0:00:13]} Qd6 {[%emt 0:00:43]} 16. Rb1 {[%emt 0:00:15]} Rab8 {[%emt 0:00:03]} 17. Qc2 {[%emt 0:04:02]} Bxf3 {[%emt 0:01:00]} 18. Bxf3 {[%emt 0:00:03]} b6 {[%emt 0:00:03]} 19. Qf5 {[%emt 0:02:22]} Ne7 {[%emt 0:00:47]} 20. Qb5 {[%emt 0:00:59]} c6 {[%emt 0:00:30]} 21. Qa6 {[%emt 0:00:27]} Qc7 {[%emt 0:00:02]} 22. Qc4 {[%emt 0:00:34]} Nd5 {[%emt 0:00:30]} 23. Re5 {[%emt 0:00:12]} Qd7 {[%emt 0:00:23]} 24. Rbe1 {[%emt 0:00:10]} Re8 {[%emt 0:00:18]} 25. g3 {[%emt 0:00:29]} Rxe5 {[%emt 0:00:02]} 26. Rxe5 {[%emt 0:00:08]} Rd8 {[%emt 0:00:03]} 27. Kg2 {[%emt 0:00:27]} Qd6 {[%emt 0:00:02]} 1/2-1/2

[Event "FIDE Online Quarter final-2020"]
[Site "Online"]
[Date "2020.08.28"]
[Round "4.1"]
[White "Asadli, Vugar"]
[Black "Gumularz, Szymon"]
[Result "1/2-1/2"]
[ECO "C55"]
[WhiteElo "2336"]
[BlackElo "2540"]
[Annotator "ChessBase"]
[PlyCount "84"]
[EventDate "2020.08.28"]
[EventType "k.o."]
[SourceTitle "playchess.com"]
[Source "ChessBase"]
[SourceQuality "1"]
[TimeControl "900+5"]

1. e4 {[%emt 0:00:03]} e5 {[%emt 0:00:06]} 2. Nf3 {[%emt 0:00:02]} Nc6 {[%emt 0:00:01]} 3. Nc3 {[%emt 0:00:03]} Nf6 {[%emt 0:00:03]} 4. a3 {[%emt 0:00:02]} d6 {[%emt 0:00:57]} 5. Bc4 {[%emt 0:01:36]} Be7 {[%emt 0:00:02]} 6. d3 {[%emt 0:00:04]} O-O {[%emt 0:00:06]} 7. h3 {[%emt 0:00:09]} a6 {[%emt 0:00:13]} 8. O-O {[%emt 0:00:19]} b5 {[%emt 0:00:14]} 9. Ba2 {[%emt 0:00:06]} Bb7 {[%emt 0:00:20]} 10. Nd5 {[%emt 0:01:09]} Nxd5 {[%emt 0:00:28]} 11. Bxd5 {[%emt 0:00:02]} Bf6 {[%emt 0:00:30]} 12. c3 {[%emt 0:00:27]} Qc8 {[%emt 0:00:07]} 13. Nh2 {[%emt 0:01:25]} Nd8 {[%emt 0:01:33]} 14. Ng4 {[%emt 0:00:12]} Be7 {[%emt 0:00:01]} 15. f4 {[%emt 0:00:46]} Bxd5 {[%emt 0:00:13]} 16. exd5 {[%emt 0:00:01]} f5 {[%emt 0:00:02]} 17. Ne3 {[%emt 0:00:46]} Nf7 {[%emt 0:00:17]} 18. fxe5 {[%emt 0:00:33]} Nxe5 {[%emt 0:00:02]} 19. Nc2 {[%emt 0:00:01]} Qb7 {[%emt 0:00:29]} 20. d4 {[%emt 0:00:22]} Nc4 {[%emt 0:00:26]} 21. Nb4 {[%emt 0:00:13]} Rae8 {[%emt 0:00:12]} 22. b3 {[%emt 0:00:47]} Nb6 {[%emt 0:00:03]} 23. Qf3 {[%emt 0:00:01]} a5 {[%emt 0:00:24]} 24. Nc6 {[%emt 0:00:02]} a4 {[%emt 0:00:02]} 25. bxa4 {[%emt 0:00:30]} bxa4 {[%emt 0:00:02]} 26. Re1 {[%emt 0:00:26]} Bf6 {[%emt 0:00:06]} 27. Rxe8 {[%emt 0:00:35]} Rxe8 {[%emt 0:00:00]} 28. Qxf5 {[%emt 0:00:02]} Qa6 {[%emt 0:00:44]} 29. Bg5 {[%emt 0:00:15]} Bxg5 {[%emt 0:00:01]} 30. Qxg5 {[%emt 0:00:03]} Qe2 {[%emt 0:00:00]} 31. Qf5 {[%emt 0:00:28]} Qe3+ {[%emt 0:00:36]} 32. Kh1 {[%emt 0:00:09]} Qe4 {[%emt 0:00:18]} 33. Qf1 {[%emt 0:00:32]} Qxd5 {[%emt 0:00:12]} 34. Nb4 {[%emt 0:00:05]} Qf7 {[%emt 0:00:23]} 35. Qb5 {[%emt 0:00:11]} Rf8 {[%emt 0:00:12]} 36. d5 {[%emt 0:00:45]} Qf2 {[%emt 0:00:10]} 37. Qc6 {[%emt 0:00:16]} Qc5 {[%emt 0:00:40]} 38. Re1 {[%emt 0:00:08]} Qf2 {[%emt 0:03:17]} 39. Rg1 {[%emt 0:00:05]} Qc5 {[%emt 0:00:07]} 40. Re1 {[%emt 0:00:21]} Qf2 {[%emt 0:00:02]} 41. Re4 {[%emt 0:00:49]} Qf5 {[%emt 0:00:37]} 42. Re1 {[%emt 0:00:35]} Qf2 {[%emt 0:00:04]} 1/2-1/2

[Event "FIDE Online Quarter final-2020"]
[Site "Online"]
[Date "2020.08.28"]
[Round "4.1"]
[White "Yip, Carissa"]
[Black "Osmak, Iulija"]
[Result "1-0"]
[ECO "C07"]
[WhiteElo "2292"]
[BlackElo "2310"]
[Annotator "ChessBase"]
[PlyCount "99"]
[EventDate "2020.08.28"]
[EventType "k.o."]
[SourceTitle "playchess.com"]
[Source "ChessBase"]
[SourceQuality "1"]
[TimeControl "900+5"]

1. e4 {[%emt 0:00:03]} e6 {[%emt 0:00:01]} 2. d4 {[%emt 0:00:10]} d5 {[%emt 0:00:02]} 3. Nd2 {[%emt 0:00:07]} c5 {[%emt 0:00:02]} 4. exd5 {[%emt 0:00:04]} Qxd5 {[%emt 0:00:00]} 5. Ngf3 {[%emt 0:00:01]} cxd4 {[%emt 0:00:02]} 6. Bc4 {[%emt 0:00:02]} Qd7 {[%emt 0:00:03]} 7. O-O {[%emt 0:00:08]} Nc6 {[%emt 0:00:03]} 8. Nb3 {[%emt 0:00:06]} a6 {[%emt 0:00:02]} 9. Nbxd4 {[%emt 0:00:32]} Nxd4 {[%emt 0:00:00]} 10. Nxd4 {[%emt 0:00:02]} Nf6 {[%emt 0:00:11]} 11. Re1 {[%emt 0:00:36]} b5 {[%emt 0:00:03]} 12. Be2 {[%emt 0:01:28]} Bb7 {[%emt 0:00:25]} 13. Bf3 {[%emt 0:00:03]} Rd8 {[%emt 0:02:35]} 14. c3 {[%emt 0:00:34]} Be7 {[%emt 0:01:16]} 15. Bxb7 {[%emt 0:01:23]} Qxb7 {[%emt 0:00:00]} 16. Qb3 {[%emt 0:00:01]} O-O {[%emt 0:00:46]} 17. Bf4 {[%emt 0:00:28]} Nd5 {[%emt 0:01:16]} 18. Be5 {[%emt 0:00:09]} Rd7 {[%emt 0:00:42]} 19. a4 {[%emt 0:01:34]} b4 {[%emt 0:01:22]} 20. c4 {[%emt 0:00:24]} Nf4 {[%emt 0:00:27]} 21. Bxf4 {[%emt 0:01:04]} Rxd4 {[%emt 0:00:04]} 22. Be3 {[%emt 0:00:16]} Rg4 {[%emt 0:00:29]} 23. g3 {[%emt 0:00:01]} Rc8 {[%emt 0:00:54]} 24. Rac1 {[%emt 0:00:23]} h5 {[%emt 0:02:18]} 25. c5 {[%emt 0:02:02]} h4 {[%emt 0:00:29]} 26. Qd3 {[%emt 0:01:13]} b3 {[%emt 0:00:45]} 27. a5 {[%emt 0:00:31]} Bf6 {[%emt 0:00:44]} 28. Qe2 {[%emt 0:00:41]} Rb4 {[%emt 0:00:30]} 29. Red1 {[%emt 0:00:43]} h3 {[%emt 0:01:08]} 30. f3 {[%emt 0:00:11]} Rc6 {[%emt 0:00:20]} 31. Qf1 {[%emt 0:00:15]} Qc8 {[%emt 0:00:17]} 32. Rd2 {[%emt 0:00:31]} e5 {[%emt 0:00:01]} 33. Rcd1 {[%emt 0:00:08]} e4 {[%emt 0:00:08]} 34. fxe4 {[%emt 0:00:50]} Rxe4 {[%emt 0:00:00]} 35. Qf3 {[%emt 0:00:01]} Re8 {[%emt 0:00:02]} 36. Bf2 {[%emt 0:00:11]} Be7 {[%emt 0:00:07]} 37. Rd7 {[%emt 0:00:07]} Rf6 {[%emt 0:00:02]} 38. Qd5 {[%emt 0:00:17]} Bf8 {[%emt 0:00:14]} 39. Bd4 {[%emt 0:00:11]} Rfe6 {[%emt 0:00:10]} 40. Rf1 {[%emt 0:00:06]} R8e7 {[%emt 0:00:03]} 41. Rd8 {[%emt 0:00:11]} Qc7 {[%emt 0:00:05]} 42. Qa8 {[%emt 0:00:14]} Re8 {[%emt 0:00:14]} 43. Rxe8 {[%emt 0:00:02]} Rxe8 {[%emt 0:00:02]} 44. Qxe8 {[%emt 0:00:00]} Qb7 {[%emt 0:00:03]} 45. c6 {[%emt 0:00:03]} Qb4 {[%emt 0:00:01]} 46. Qxf7+ {[%emt 0:00:02]} Kh7 {[%emt 0:00:02]} 47. Qf5+ {[%emt 0:00:08]} Kg8 {[%emt 0:00:01]} 48. Qxf8+ {[%emt 0:00:03]} Qxf8 {[%emt 0:00:03]} 49. Rxf8+ {[%emt 0:00:00]} Kxf8 {[%emt 0:00:01]} 50. c7 {[%emt 0:00:00]} 1-0

[Event "FIDE Online Quarter final-2020"]
[Site "Online"]
[Date "2020.08.28"]
[Round "4.1"]
[White "Cyfka, Karina"]
[Black "Mammadova, Gulnar"]
[Result "1-0"]
[ECO "A41"]
[WhiteElo "2257"]
[BlackElo "2317"]
[Annotator "ChessBase"]
[PlyCount "97"]
[EventDate "2020.08.28"]
[EventType "k.o."]
[SourceTitle "playchess.com"]
[Source "ChessBase"]
[SourceQuality "1"]
[TimeControl "900+5"]

1. d4 {[%emt 0:00:01]} g6 {[%emt 0:00:02]} 2. Nf3 {[%emt 0:00:10]} Bg7 {[%emt 0:00:02]} 3. c4 {[%emt 0:00:15]} d6 {[%emt 0:00:06]} 4. g3 {[%emt 0:00:06]} Nd7 {[%emt 0:00:04]} 5. Bg2 {[%emt 0:00:03]} e5 {[%emt 0:00:05]} 6. O-O {[%emt 0:00:34]} Ne7 {[%emt 0:00:04]} 7. Nc3 {[%emt 0:00:07]} O-O {[%emt 0:00:05]} 8. d5 {[%emt 0:00:13]} h6 {[%emt 0:00:26]} 9. e4 {[%emt 0:00:15]} f5 {[%emt 0:00:11]} 10. exf5 {[%emt 0:00:20]} gxf5 {[%emt 0:00:28]} 11. Ne1 {[%emt 0:00:17]} Nf6 {[%emt 0:01:14]} 12. f4 {[%emt 0:00:08]} e4 {[%emt 0:00:21]} 13. Nc2 {[%emt 0:00:10]} c5 {[%emt 0:00:32]} 14. dxc6 {[%emt 0:00:37]} bxc6 {[%emt 0:00:14]} 15. Be3 {[%emt 0:00:32]} Ba6 {[%emt 0:01:23]} 16. b3 {[%emt 0:00:32]} d5 {[%emt 0:01:02]} 17. Nb4 {[%emt 0:01:33]} Bb7 {[%emt 0:00:27]} 18. c5 {[%emt 0:00:16]} a5 {[%emt 0:03:13]} 19. Nc2 {[%emt 0:00:06]} Ba6 {[%emt 0:00:02]} 20. Re1 {[%emt 0:00:19]} Bd3 {[%emt 0:00:06]} 21. Bd4 {[%emt 0:00:25]} Bxc2 {[%emt 0:01:06]} 22. Qxc2 {[%emt 0:00:04]} Ng4 {[%emt 0:00:03]} 23. Ne2 {[%emt 0:00:56]} Qd7 {[%emt 0:00:18]} 24. a3 {[%emt 0:00:48]} Ng6 {[%emt 0:00:45]} 25. Bh3 {[%emt 0:00:40]} h5 {[%emt 0:00:36]} 26. Rab1 {[%emt 0:00:43]} Rae8 {[%emt 0:00:51]} 27. Qc3 {[%emt 0:00:06]} Bh6 {[%emt 0:00:33]} 28. Ra1 {[%emt 0:00:50]} h4 {[%emt 0:01:22]} 29. Qxa5 {[%emt 0:00:10]} hxg3 {[%emt 0:00:04]} 30. hxg3 {[%emt 0:00:03]} Qh7 {[%emt 0:00:16]} 31. Kg2 {[%emt 0:00:31]} e3 {[%emt 0:00:18]} 32. Bxg4 {[%emt 0:02:21]} fxg4 {[%emt 0:00:03]} 33. Rh1 {[%emt 0:00:03]} Nxf4+ {[%emt 0:00:41]} 34. gxf4 {[%emt 0:00:09]} Qe4+ {[%emt 0:00:05]} 35. Kg1 {[%emt 0:00:10]} Re6 {[%emt 0:00:22]} 36. Rf1 {[%emt 0:00:38]} g3 {[%emt 0:00:07]} 37. Rh3 {[%emt 0:00:29]} Rg6 {[%emt 0:00:01]} 38. Qc7 {[%emt 0:00:29]} Rf7 {[%emt 0:00:11]} 39. Qe5 {[%emt 0:00:23]} Qxe5 {[%emt 0:00:08]} 40. Bxe5 {[%emt 0:00:11]} g2 {[%emt 0:00:04]} 41. Rb1 {[%emt 0:00:19]} Bg7 {[%emt 0:00:02]} 42. Bxg7 {[%emt 0:00:17]} Rfxg7 {[%emt 0:00:05]} 43. Rxe3 {[%emt 0:00:14]} Rh6 {[%emt 0:00:05]} 44. Kf2 {[%emt 0:00:03]} Rh1 {[%emt 0:00:02]} 45. Rg1 {[%emt 0:00:04]} Rh2 {[%emt 0:00:04]} 46. Rg3 {[%emt 0:00:04]} Kf7 {[%emt 0:00:00]} 47. Rxg7+ {[%emt 0:00:01]} Kxg7 {[%emt 0:00:02]} 48. Rxg2+ {[%emt 0:00:02]} Rxg2+ {[%emt 0:00:01]} 49. Kxg2 {[%emt 0:00:00]} 1-0

[Event "FIDE Online Quarter final-2020"]
[Site "Online"]
[Date "2020.08.28"]
[Round "4.1"]
[White "Berdnyk, Mariia"]
[Black "Wang, Annie"]
[Result "0-1"]
[ECO "E04"]
[WhiteElo "2232"]
[BlackElo "2271"]
[Annotator "ChessBase"]
[PlyCount "150"]
[EventDate "2020.08.28"]
[EventType "k.o."]
[SourceTitle "playchess.com"]
[Source "ChessBase"]
[SourceQuality "1"]
[TimeControl "900+5"]

1. d4 {[%emt 0:00:01]} Nf6 {[%emt 0:00:02]} 2. c4 {[%emt 0:00:01]} e6 {[%emt 0:00:01]} 3. g3 {[%emt 0:00:01]} d5 {[%emt 0:00:02]} 4. Nf3 {[%emt 0:00:02]} dxc4 {[%emt 0:00:01]} 5. Bg2 {[%emt 0:00:02]} a6 {[%emt 0:00:03]} 6. O-O {[%emt 0:00:05]} Nc6 {[%emt 0:00:01]} 7. e3 {[%emt 0:00:01]} Bd7 {[%emt 0:00:03]} 8. Qe2 {[%emt 0:00:08]} Bd6 {[%emt 0:00:19]} 9. Qxc4 {[%emt 0:00:03]} O-O {[%emt 0:00:01]} 10. Rd1 {[%emt 0:00:14]} Qe7 {[%emt 0:00:03]} 11. Nc3 {[%emt 0:00:19]} h6 {[%emt 0:00:02]} 12. Qe2 {[%emt 0:02:06]} e5 {[%emt 0:02:22]} 13. dxe5 {[%emt 0:00:18]} Bxe5 {[%emt 0:00:20]} 14. Nxe5 {[%emt 0:00:14]} Qxe5 {[%emt 0:00:08]} 15. Bd2 {[%emt 0:01:29]} Rad8 {[%emt 0:01:12]} 16. Be1 {[%emt 0:00:32]} Rfe8 {[%emt 0:01:04]} 17. h3 {[%emt 0:00:17]} Qe6 {[%emt 0:00:44]} 18. Nd5 {[%emt 0:02:06]} Nxd5 {[%emt 0:00:32]} 19. Rxd5 {[%emt 0:00:01]} Ne7 {[%emt 0:00:31]} 20. Rdd1 {[%emt 0:00:39]} Bc6 {[%emt 0:00:45]} 21. Bc3 {[%emt 0:00:15]} Bxg2 {[%emt 0:00:41]} 22. Kxg2 {[%emt 0:00:01]} Nd5 {[%emt 0:00:02]} 23. Bd4 {[%emt 0:01:02]} c5 {[%emt 0:00:59]} 24. Bc3 {[%emt 0:00:07]} b5 {[%emt 0:00:48]} 25. Ba5 {[%emt 0:00:14]} Rd7 {[%emt 0:00:23]} 26. Qf3 {[%emt 0:00:06]} Nf6 {[%emt 0:00:29]} 27. Rxd7 {[%emt 0:00:11]} Nxd7 {[%emt 0:00:01]} 28. Rd1 {[%emt 0:00:49]} Ne5 {[%emt 0:00:05]} 29. Qd5 {[%emt 0:01:15]} Nc4 {[%emt 0:00:21]} 30. Bc3 {[%emt 0:01:43]} b4 {[%emt 0:00:31]} 31. Qxe6 {[%emt 0:00:54]} Rxe6 {[%emt 0:00:07]} 32. b3 {[%emt 0:00:17]} bxc3 {[%emt 0:02:27]} 33. bxc4 {[%emt 0:00:01]} Re4 {[%emt 0:00:05]} 34. Rc1 {[%emt 0:00:17]} Rxc4 {[%emt 0:00:02]} 35. Kf3 {[%emt 0:00:01]} Kf8 {[%emt 0:00:19]} 36. Ke2 {[%emt 0:00:01]} Ke7 {[%emt 0:00:10]} 37. Kd3 {[%emt 0:00:04]} Ra4 {[%emt 0:00:01]} 38. Rxc3 {[%emt 0:00:48]} Rxa2 {[%emt 0:00:03]} 39. f4 {[%emt 0:00:31]} Kd6 {[%emt 0:00:08]} 40. e4 {[%emt 0:00:08]} a5 {[%emt 0:00:20]} 41. g4 {[%emt 0:00:22]} Kc6 {[%emt 0:00:11]} 42. f5 {[%emt 0:00:07]} f6 {[%emt 0:00:23]} 43. Rb3 {[%emt 0:00:12]} a4 {[%emt 0:00:42]} 44. Rb8 {[%emt 0:00:01]} a3 {[%emt 0:00:30]} 45. Rg8 {[%emt 0:00:06]} Ra1 {[%emt 0:00:27]} 46. Kc2 {[%emt 0:00:12]} Rh1 {[%emt 0:00:03]} 47. Ra8 {[%emt 0:00:15]} Rxh3 {[%emt 0:00:03]} 48. Rg8 {[%emt 0:00:07]} Rh1 {[%emt 0:00:05]} 49. Kb3 {[%emt 0:00:03]} Rh3+ {[%emt 0:00:06]} 50. Ka2 {[%emt 0:00:02]} Kd6 {[%emt 0:00:08]} 51. Rxg7 {[%emt 0:00:08]} Ke5 {[%emt 0:00:01]} 52. Re7+ {[%emt 0:00:01]} Kd4 {[%emt 0:00:02]} 53. e5 {[%emt 0:00:13]} fxe5 {[%emt 0:00:04]} 54. f6 {[%emt 0:00:00]} Rf3 {[%emt 0:00:02]} 55. f7 {[%emt 0:00:02]} c4 {[%emt 0:00:08]} 56. Rd7+ {[%emt 0:00:03]} Ke4 {[%emt 0:00:01]} 57. Rc7 {[%emt 0:00:05]} Kd5 {[%emt 0:00:10]} 58. Rb7 {[%emt 0:00:15]} Kc6 {[%emt 0:00:12]} 59. Re7 {[%emt 0:00:04]} Kd6 {[%emt 0:00:01]} 60. Rb7 {[%emt 0:00:01]} Ke6 {[%emt 0:00:07]} 61. Rc7 {[%emt 0:00:04]} Rxf7 {[%emt 0:00:03]} 62. Rxc4 {[%emt 0:00:09]} Kd5 {[%emt 0:00:02]} 63. Rc3 {[%emt 0:00:02]} Rf4 {[%emt 0:00:05]} 64. Rh3 {[%emt 0:00:05]} Rxg4 {[%emt 0:00:03]} 65. Rxh6 {[%emt 0:00:01]} Ra4 {[%emt 0:00:06]} 66. Rh8 {[%emt 0:00:08]} Kd4 {[%emt 0:00:04]} 67. Rd8+ {[%emt 0:00:16]} Ke3 {[%emt 0:00:02]} 68. Re8 {[%emt 0:00:02]} e4 {[%emt 0:00:01]} 69. Re7 {[%emt 0:00:03]} Kd2 {[%emt 0:00:08]} 70. Rd7+ {[%emt 0:00:03]} Ke2 {[%emt 0:00:02]} 71. Re7 {[%emt 0:00:06]} e3 {[%emt 0:00:01]} 72. Re8 {[%emt 0:00:02]} Kd2 {[%emt 0:00:01]} 73. Rd8+ {[%emt 0:00:01]} Ke1 {[%emt 0:00:01]} 74. Re8 {[%emt 0:00:02]} e2 {[%emt 0:00:01]} 75. Re7 {[%emt 0:00:01]} Kf2 {[%emt 0:00:10]} 0-1

[Event "FIDE Online Quarter final-2020"]
[Site "Online"]
[Date "2020.08.28"]
[Round "4.1"]
[White "Sliwicka, Alicja"]
[Black "Balajayeva, Khanim"]
[Result "0-1"]
[ECO "C47"]
[WhiteElo "2134"]
[BlackElo "2268"]
[Annotator "ChessBase"]
[PlyCount "66"]
[EventDate "2020.08.28"]
[EventType "k.o."]
[SourceTitle "playchess.com"]
[Source "ChessBase"]
[SourceQuality "1"]
[TimeControl "900+5"]

1. e4 {[%emt 0:00:02]} e5 {[%emt 0:00:04]} 2. d4 {[%emt 0:00:03]} exd4 {[%emt 0:00:04]} 3. Nf3 {[%emt 0:00:01]} Nc6 {[%emt 0:00:01]} 4. Nxd4 {[%emt 0:00:02]} Nf6 {[%emt 0:00:04]} 5. Nc3 {[%emt 0:00:03]} Bc5 {[%emt 0:00:11]} 6. Nxc6 {[%emt 0:00:16]} bxc6 {[%emt 0:00:06]} 7. Bd3 {[%emt 0:00:22]} O-O {[%emt 0:00:51]} 8. O-O {[%emt 0:00:05]} d6 {[%emt 0:00:47]} 9. Bg5 {[%emt 0:00:12]} h6 {[%emt 0:00:29]} 10. Bh4 {[%emt 0:00:10]} Bd4 {[%emt 0:00:40]} 11. Na4 {[%emt 0:01:10]} a5 {[%emt 0:00:07]} 12. c3 {[%emt 0:00:07]} Ba7 {[%emt 0:00:02]} 13. Qf3 {[%emt 0:00:35]} g5 {[%emt 0:01:16]} 14. e5 {[%emt 0:01:51]} dxe5 {[%emt 0:00:09]} 15. Bg3 {[%emt 0:01:24]} Bg4 {[%emt 0:01:59]} 16. Qxc6 {[%emt 0:00:05]} Bd7 {[%emt 0:00:07]} 17. Qc4 {[%emt 0:00:19]} Bxa4 {[%emt 0:02:40]} 18. Bxe5 {[%emt 0:01:13]} Bd7 {[%emt 0:00:04]} 19. Rad1 {[%emt 0:01:55]} Be6 {[%emt 0:00:32]} 20. Qa4 {[%emt 0:00:06]} Qe7 {[%emt 0:00:15]} 21. Rfe1 {[%emt 0:01:36]} Rfd8 {[%emt 0:00:38]} 22. Qc2 {[%emt 0:00:18]} Rd7 {[%emt 0:01:20]} 23. h3 {[%emt 0:02:37]} Rad8 {[%emt 0:00:12]} 24. Qe2 {[%emt 0:00:05]} Rd5 {[%emt 0:00:58]} 25. Qf3 {[%emt 0:00:28]} Ne8 {[%emt 0:01:19]} 26. Bg3 {[%emt 0:01:28]} Qf6 {[%emt 0:00:30]} 27. Qe2 {[%emt 0:00:09]} Ng7 {[%emt 0:00:18]} 28. Bxc7 {[%emt 0:00:07]} Rxd3 {[%emt 0:00:13]} 29. Rxd3 {[%emt 0:00:18]} Rxd3 {[%emt 0:00:01]} 30. Be5 {[%emt 0:00:09]} Qf5 {[%emt 0:00:13]} 31. Rf1 {[%emt 0:00:07]} Rd5 {[%emt 0:00:11]} 32. Bg3 {[%emt 0:00:03]} Qd3 {[%emt 0:00:06]} 33. Qe1 {[%emt 0:00:02]} Qxg3 {[%emt 0:00:02]} 0-1

[Event "FIDE Online Quarter final-2020"]
[Site "Online"]
[Date "2020.08.29"]
[Round "4.2"]
[White "Duda, Jan-Krzysztof"]
[Black "Radjabov, Teimour"]
[Result "1/2-1/2"]
[ECO "E49"]
[WhiteElo "2940"]
[BlackElo "2835"]
[Annotator "RC"]
[PlyCount "53"]
[EventDate "2020.08.28"]
[EventType "k.o."]
[SourceTitle "playchess.com"]
[Source "ChessBase"]
[SourceQuality "1"]
[TimeControl "900+5"]

1. d4 {[%emt 0:00:02]} Nf6 {[%emt 0:00:03]} 2. c4 {[%emt 0:00:03]} e6 {[%emt 0:00:01]} 3. Nc3 {[%emt 0:00:03]} Bb4 {[%emt 0:00:02]} 4. e3 {[%emt 0:00:02]} d5 {[%emt 0:00:04]} 5. a3 {[%emt 0:03:39]} Bxc3+ {[%emt 0:00:25]} 6. bxc3 {[%emt 0:00:00]} O-O {[%emt 0:00:23]} 7. cxd5 {[%emt 0:00:11]} exd5 {[%emt 0:00:07]} 8. Bd3 {[%emt 0:00:03]} Re8 {[%emt 0:00:18]} 9. Ne2 {[%emt 0:00:04]} c5 {[%emt 0:00:32]} 10. O-O {[%emt 0:00:02]} b6 {[%emt 0:00:31]} 11. dxc5 {[%emt 0:00:45]} bxc5 {[%emt 0:00:04]} 12. c4 {[%emt 0:00:03]} Ba6 {[%emt 0:00:53]} 13. cxd5 {[%emt 0:00:04]} Bxd3 {[%emt 0:00:07]} 14. Qxd3 {[%emt 0:00:00]} Qxd5 {[%emt 0:00:12]} 15. Qxd5 {[%emt 0:01:26]} Nxd5 {[%emt 0:00:03]} 16. Ra2 {[%emt 0:00:00]} Nb6 {[%emt 0:01:11]} 17. Rc2 {[%emt 0:00:00]} Na6 {[%emt 0:00:36]} 18. f3 {[%emt 0:00:00]} Rad8 {[%emt 0:00:14]} 19. e4 {[%emt 0:00:00]} Rd3 {[%emt 0:00:09]} 20. Nf4 {[%emt 0:00:00]} Rb3 {[%emt 0:00:09]} 21. Rd1 {[%emt 0:00:00]} Rc8 {[%emt 0:00:28]} 22. Kf2 {[%emt 0:00:00]} f6 {[%emt 0:00:32]} 23. h4 {[%emt 0:02:00]} c4 {[%emt 0:00:27]} 24. Ne6 {[%emt 0:02:44]} Nc5 {[%emt 0:00:27]} 25. Nxc5 {[%emt 0:00:01]} Rxc5 {[%emt 0:00:01]} 26. Be3 {[%emt 0:00:01]} Rc7 {[%emt 0:00:06]} 27. Rdc1 {[%emt 0:00:34]} 1/2-1/2